Cogmind - Beta 15 @@@ ROGUE MODE // 2025.10.09 @ 21:08:20 Player: DietSnapple Result: Destroyed by G-34 Mercenary with Small Laser Performance ------------- Evolutions (0) 0 Regions Visited (1) 200 Robots Destroyed (17) 85 Value Destroyed (463) 463 Prototype IDs (2) 40 Alien Tech Used (0) 0 Bonus (0) 0 TOTAL SCORE: 788 Bonus ------- None Cogmind --------- Core Integrity 0/250 Matter 277/300 Energy 250/250 System Corruption 2% Temperature Cool (25) Movement Core (450) Ox8 Location -10/Materials Parts ------- > --- POWER (1) -------- Ion Engine > --- PROPULSION (2) --- (None) > --- UTILITY (2) ------ Large Storage Unit Visual Processing Unit > --- WEAPON (2) ------- Mining Claw (fused) > --- INVENTORY (15) --- Ion Engine Light Treads Light Treads Small Storage Unit Sensor Array Signal Interpreter Shield Generator Small Laser Peak State ------------ > --- POWER ------------ Ion Engine > --- PROPULSION ------- Wheel Wheel > --- UTILITY ---------- Large Storage Unit Visual Processing Unit > --- WEAPON ----------- EM Pulse Gun EM Pulse Gun > --- INVENTORY -------- Ion Engine Light Treads Light Treads Small Storage Unit Shield Generator Medium Laser Datajack Plasma Cutter [Rating: 9] Favorites ----------- Power Ion Engine Engine Ion Engine Propulsion Wheel Wheel Wheel Utility Visual Processing Unit Storage Large Storage Unit Processor Visual Processing Unit Weapon EM Pulse Gun Energy Gun EM Pulse Gun Special Weapon Plasma Cutter Slashing Weapon Mining Claw Special Melee Weapon Datajack Build | -11 -10 ------- Run | Yrd Mat Slots Evolved . | . . Power . | . . Propulsion . | . . Utility . | . . Weapon . | . . Parts Attached 16 | 6 10 Power 3 | 1 2 Engine 3 | 1 2 Core . | . . Reactor . | . . Propulsion 2 | 2 . Treads . | . . Leg . | . . Wheel 2 | 2 . Hover . | . . Flight . | . . Utility 3 | 1 2 Device . | . . Storage 2 | 1 1 Processor 1 | . 1 Hackware . | . . Protection . | . . Artifact . | . . Weapon 8 | 2 6 Energy Gun 5 | 2 3 Energy Cannon . | . . Ballistic Gun . | . . Ballistic Cannon . | . . Launcher . | . . Special Weapon 1 | . 1 Impact Weapon . | . . Slashing Weapon 1 | . 1 Piercing Weapon . | . . Special Melee Weapon 1 | . 1 Unidentified Prototypes . | . . Parts Lost 9 | . 9 Power 2 | . 2 Propulsion 2 | . 2 Utility . | . . Weapon 5 | . 5 Highest Loss Streak 3 | . 3 To Critical Strikes . | . . Average Backups 6 | 1 6 Power . | . . Propulsion 1 | . 2 Utility 2 | . 2 Weapon . | . . Tool/Special . | . . Unused Backups 5 | . 5 Power . | . . Propulsion 2 | . 2 Utility 3 | . 3 Weapon . | . . Tool/Special . | . . Average Slot Usage (%) 74 | . 74 Engine 10 | . 10 Wheel 14 | . 14 Storage 14 | . 14 Processor 12 | . 12 Energy Gun 11 | . 11 Special Weapon 1 | . 1 Slashing Weapon 5 | . 5 Special Melee Weapon 3 | . 3 Peak Build Rating 9 | 6 9 Average Rating 6 | 4 6 On Entrance 3 | . 6 Naked Turns . | . . Heaviest Build 29 | 14 29 Greatest Support 20 | 20 20 Greatest Overweight (x) 9 | . 9 Average Overweight (x) 1 | . 2 Largest Inventory Capacity 15 | 8 15 Average Capacity 13 | 6 13 Most Carried 8 | 4 8 Average Carried 6 | 1 6 Final Capacity 15 | 8 15 Final Carried 8 | 4 8 Class Distribution -------------------- 100% | Mutant Dominant Class ---------------- Mutant | -10/Materials Resources | -11 -10 ----------- Run | Yrd Mat Matter Collected 320 | 199 121 Remotely . | . . Salvage Created 570 | . 570 Parts 40 | . 40 Haulers Intercepted . | . . Recyclers Shooed . | . . Parts Field Recycled . | . . Retrieved Matter . | . . Parts Self-Destructed . | . . Prevented . | . . Kills | -11 -10 ------- Run | Yrd Mat Combat Hostiles Destroyed 16 | . 16 Melee 2 | . 2 Guns 11 | . 11 Cannons 1 | . 1 AOE 2 | . 2 Classes Destroyed 3 | . 3 Operator 1 | . 1 Swarmer 5 | . 5 Grunt 11 | . 11 Best Kill Streak 5 | . 5 Combat Bots Only 5 | . 5 Max Kills in Single Turn 2 | . 2 Gunslinging . | . . Exploded 2 | . 2 Melee 1 | . 1 Uniques/NPCs Destroyed . | . . Combat | -11 -10 -------- Run | Yrd Mat Hostile Shots Fired 115 | . 115 Missed 40 | . 40 Hits 75 | . 75 Projectile 75 | . 75 Critical Strikes 1 | . 1 Damage Taken 827 | . 827 Core 258 | . 258 Absorbed by Shields . | . . Core Remaining (%) 100 | 100 . Volleys Fired 80 | . 80 Largest 2 | . 2 Hottest 80 | . 80 Shots Fired 98 | . 98 Gun 75 | . 75 Cannon . | . . Launcher . | . . Special 23 | . 23 Kinetic . | . . Thermal 61 | . 61 Explosive . | . . Electromagnetic 37 | . 37 Robot Hit Streak 10 | . 10 Robot Miss Streak 5 | . 5 Penetration Max . | . . Secondary Targets 1 | . 1 Max Gunslinging Chain 1 | . 1 Shots Hit Robots 70 | . 70 Core Hits 30 | . 30 Critical Kills . | . . Critical Parts Destroyed . | . . Critical Strikes 1 | . 1 Corrupt 1 | . 1 Melee Attacks 22 | . 22 Impact . | . . Slashing 17 | . 17 Piercing . | . . Sneak Attacks 4 | . 4 Combat Hostiles . | . . Follow-up Attacks . | . . Damage Inflicted 1071 | . 1071 Guns 629 | . 629 Cannons . | . . Explosions 59 | . 59 Melee 359 | . 359 Ramming 1 | . 1 Kinetic . | . . Thermal 426 | . 426 Explosive . | . . Electromagnetic 285 | . 285 Impact . | . . Slashing 359 | . 359 Piercing . | . . Highest Corruption 2 | . 2 Average Corruption 2 | . 2 Corruption Purged . | . . Corruption Blocked . | . . Effects 3 | . 3 Message Errors 2 | . 2 Parts Fused 1 | . 1 Overload Shots . | . . Overflow Damage 10 | . 10 Projectiles . | . . Explosions 2 | . 2 Melee 8 | . 8 Knockbacks . | . . Impact . | . . Kinetic . | . . Secondary . | . . Self-Inflicted Damage 9 | . 9 Shots 1 | . 1 Rammed 1 | . 1 Targets Rammed 1 | . 1 Kicked . | . . Crushed . | . . Highest Temperature 278 | . 278 Average Temperature 82 | . 82 Received Heat Transfer 411 | . 411 Siege Activations . | . . Martial Activations . | . . Shielding Activations . | . . Robots Disrupted . | . . Combat Hostiles . | . . Robots Corrupted . | . . Combat Hostiles . | . . Parts Fried . | . . Impact Corruptions . | . . Robots Melted . | . . Combat Hostiles . | . . Parts Melted 3 | . 3 Heat Transferred 1115 | . 1115 Parts Sabotaged . | . . Parts Stolen . | . . Parts Stripped . | . . Power Chain Reactions 1 | . 1 Alert | -11 -10 ------- Run | Yrd Mat Maximum Alert Level . | . . Low Security (%) 100 | 100 100 Level 1 . | . . Level 2 . | . . Level 3 . | . . Level 4 . | . . Level 5 . | . . High Security . | . . Max Security . | . . Peak Influence 121 | . 121 Initial . | . . Average 47 | . 50 Influence Increases 441 | . 441 Destroy 0b10 Robot/C 320 | . 320 Destroy 0b10 Robot/NC 5 | . 5 Destroy Leader 70 | . 70 Successful Hack 14 | . 14 Disable Machine 15 | . 15 Destroy Structure 2 | . 2 Lose Combat Pursuer 15 | . 15 Influence Decreases 441 | . 441 Time Decay 361 | . 361 Lost Part 80 | . 80 Squads Dispatched 5 | . 5 Investigation 4 | . 4 Extermination . | . . Reinforcement 1 | . 1 Assault . | . . Garrison . | . . Intercept . | . . Searches Triggered . | . . Construction Impeded . | . . Haulers Reinforced . | . . Active Scanning Responses . | . . Cargo Convoy Interrupts . | . . Stealth | -11 -10 --------- Run | Yrd Mat Distress Signals 1 | . 1 Communications Jammed . | . . Distress Signals . | . . Times Spotted 28 | . 28 Peak Tracking Total 4 | . 4 Tactical Retreats 1 | . 1 Traps | -11 -10 ------- Run | Yrd Mat Traps Triggered 4 | . 4 Indirectly . | . . Trap Hack Attempts 7 | . 7 Triggered . | . . Disarmed 1 | . 1 Reprogrammed . | . . Reused . | . . Traps Extracted . | . . Installed . | . . Triggered . | . . Machines | -11 -10 ---------- Run | Yrd Mat Machines Disabled 1 | . 1 Max in Single Turn 1 | . 1 Machines Repaired . | . . Machines Dismantled . | . . Machines Sabotaged . | . . Overloaded Fab Kills . | . . Hacking | -11 -10 --------- Run | Yrd Mat Machines Accessed 2 | . 2 Terminals 2 | . 2 Fabricators . | . . Repair Stations . | . . Recycling Units . | . . Scanalyzers . | . . Garrison Access . | . . Total Hacks 13 | . 13 Successful 8 | . 8 Failed 4 | . 4 Catastrophic 1 | . 1 Database Lockouts 1 | . 1 Manual 7 | . 7 Terminals 13 | . 13 Fabricators . | . . Repair Stations . | . . Recycling Units . | . . Scanalyzers . | . . Garrison Access . | . . Terminal Hacks 8 | . 8 Record 7 | . 7 Prototype ID Bank 1 | . 1 Fabricator Hacks . | . . Repair Station Hacks . | . . Recycling Unit Hacks . | . . Scanalyzer . | . . Garrison Access Hacks . | . . Unauthorized Hacks . | . . Terminals . | . . Fabricators . | . . Repair Stations . | . . Recycling Units . | . . Scanalyzers . | . . Garrison Access . | . . Data Cores Recovered . | . . Used . | . . Hacking Detections 2 | . 2 Full Trace Events 1 | . 1 Feedback Events . | . . Feedback Blocked . | . . Robot Schematics Acquired . | . . Robots Built . | . . Authchips . | . . Time . | . . Total Robot Build Rating . | . . Part Schematics Acquired . | . . Parts Built . | . . Authchips . | . . Time . | . . Total Part Build Rating . | . . Parts Repaired . | . . Time . | . . Parts Recycled . | . . Recycled Matter . | . . Retrieved Matter . | . . Retrieved Components . | . . Parts Scanalyzed . | . . Part Schematics Acquired . | . . Parts Damaged . | . . Bothacking | -11 -10 ------------ Run | Yrd Mat Used RIF Installer . | . . Robots Hacked 2 | . 2 Non-combat 1 | . 1 Combat 1 | . 1 Robot Hacks Applied 3 | . 3 parse_system 2 | . 2 no_distress 1 | . 1 Relay Couplers Released . | . . Fabnet Peak Effective % . | . . Robots Rewired . | . . Allies Hacked . | . . Hacks Repelled . | . . Allies | -11 -10 -------- Run | Yrd Mat Total Allies . | . . Largest Group . | . . Highest-Rated Group . | . . Highest-Rated Ally . | . . Total Orders . | . . Ally Attacks . | . . Total Damage . | . . Kills . | . . Allies Corrupted . | . . Allies Melted . | . . Intel | -11 -10 ------- Run | Yrd Mat Active Infowar (turns) 833 | . 833 Optics 833 | . 833 Robot Analysis Total . | . . Derelict Logs Recovered . | . . Drone Launches . | . . Drone Recoveries . | . . Exploration | -11 -10 ------------- Run | Yrd Mat Turns Passed 1025 | 74 951 Spaces Moved 525 | 78 447 Core 68 | 5 63 Treads . | . . Legs . | . . Wheels 457 | 73 384 Hover . | . . Flight . | . . Fastest Speed 50 | 50 80 Average Speed 132 | 78 141 Slowest Speed 500 | 80 500 Overloaded Moves . | . . Propulsion Burnouts . | . . Robots Hopped . | . . Potential Cave-ins . | . . Cave-ins Triggered . | . . Exploration Rate (%) 36 | 5 67 Regions Visited 1 Branch Regions . Pre-discovered Areas . | . . Known Exits Taken . | . . Unknown Exits Taken 1 | 1 . Scrap Searched . | . . Spaces Dug . | . . Terrain Destroyed 2 | . 2 Melee . | . . Projectile . | . . AOE 2 | . 2 Terrain Rammed . | . . Walls Destroyed . | . . Machines Disabled . | . . Actions | -11 -10 --------- Run | Yrd Mat Total 688 | 87 601 Wait 24 | . 24 Move 524 | 77 447 Hop . | . . Pick Up 12 | 4 8 Fast Attach 7 | 6 1 Attach 6 | . 6 Detach . | . . Swap 5 | . 5 Drop . | . . Fire 80 | . 80 Melee 22 | . 22 Ram 1 | . 1 Kick . | . . Crush . | . . Escape Stasis . | . . Rewire . | . . Trap 7 | . 7 Miscellaneous . | . . Route ------- -11/Scrapyard -10/Materials (discovered 3 exits: [*Mat x3]) History --------- Turn | Location | Event 10 | -11/Scrapyard | Discovered new exit (range 15) 75 | -11/Scrapyard | Entered Materials 301 | -10/Materials | Discovered new exit (range 4) 309 | -10/Materials | Build established: Mutant 505 | -10/Materials | Discovered new exit (range 6) 699 | -10/Materials | Core integrity fell below 50% 756 | -10/Materials | Lost 3 parts (1p1n1w) 845 | -10/Materials | Discovered new exit (range 9) 853 | -10/Materials | Central database locked down 874 | -10/Materials | Core integrity fell below 20% 1026 | -10/Materials | Destroyed by G-34 Mercenary with Small Laser Last Messages --------------- Initially the mining tunnels only rarely experienced hostile [Derelict] activity, not enough to justify allocating significant resources to defense. This has recently changed with the [Infestation], for which the current response is to dispatch garrisoned Demolishers until a more permanent solution can be put in place. 00853_ ALERT: Suspicious activity at Terminal M006. Dispatching Investigation squad. 00854_ U-05 Engineer lays Concrete. 00871_ WFV3Y=U,=/71UWW5N:&F1TVP5RPC&IHDY 00882_ G-34 Mercenary destroyed. 00901_ R-06 Scavenger collects Heat Sink. 00902_ K-01 Serf cleans the Terminal. 00904_ R-06 Scavenger collects Aluminum Leg. 00976_ Acquired Ion Engine. 01012_ =4Q2GHLEOVH&IVULUJNF 01021_ Critical hit (Burn: +37). 01022_ Sml. Laser destroyed. 01022_ Slammed into G-47 Trooper. 01022_ Destabilizing: System interference. 01022_ Visual Processing Unit temporarily disabled. Map ----- +----------------------------------------------------+ | | | | | | | | | | | | | | | ?????????????????????????????????????############? | | ?????????????????????????????????????# """ """ # | | ?????????????????????????????????????# """""""" # | | ?????????????????????????????????????# """"" # | | ?????????????????????????????????????# # | | ?????????????????????????????????????# # | | ?????????????????????????????????????# # | | ?????????????????????????#####???????# % # | | ?????????????????????????# #???????##########+## | | ???????????????????????### < #???????######### % / | | ???????????????????????# # #???????# + ## | | ????????????????????????# #???????# # ## | | ?????????????????????????# #???????# # ## | | ?????????????????????????# #???????# """ # ## | | ??????????? ############## ##??????# """ # | | ??????????? = ###+#### """ # | | ????????????? g # # ## | | ????????????? mg T + """ # #? | | ???????????????????## #@ # """ / #? | | ????????????????????????# % ##### ## """ # #? | | ????????????????????????###+####### ## # #? | | ????????????????????????# ## ########## #? | | ????????????????????????# """ ## ???????? #? | | ????????????????????????# """"" ## ???????? #? | | ????????????????????????# """"" ## ??????? #? | | ????????????????????????# """"" ## ??????? ?? | | ????????????????????? # """ ## ??????? ?# | | ????????????????????? # #? ??????? ?# | | ????????????????????? # #? ??????????# | | ????????????????????? # #? "??????????? | | ????????????????????? ##########? ""?????????? | | ????????????????????? #?????????? "??????????# | | ????????????????????? ####??????? ??????????# | | ????????????######### ???????? ???????????# | | ????????????# ## ????????? ]???????????# | | ????????????# "" ## ????????????????????????# | | ????????????# Y" ## #????????????????????????# | | ????????????# "" ## #????????????????????????? | | ????????????# ## #????????????????????????? | | ????????????# ## ##???????????????????????? | | ?????###########+### #???????????????????????? | | ###??# #???????????????????????? | | #??# #???????????????????????? | +----------------------------------------------------+ Best States ------------- Heat Dissipation 25 Energy Generation 10 Energy Capacity 250 Matter Stores 300 Matter Capacity 300 Sight Range 18 Terrain Scan Density 10 Evasion (%) 44 Item Schematics ----------------- None Robot Schematics ------------------ None Fabricated ------------ Nothing Repaired ---------- Nothing Alien Tech Used ----------------- None Achievements -------------- None Challenges ------------ None Game ------ Seed KineticGravitonDissipator Manual? 0 Play Time 00:09:26 Cumulative 28.8 hours Start 2025.10.09 @ 21:01:03 End 2025.10.09 @ 21:08:20 Sessions 1 Manual Loads 0 Difficulty Rogue Special Mode None Game No. 78 Rogue 71 Adventurer 7 Explorer 0 Win Type - Total 0 Types 0/0/0/0/0/0/0/0/0/0 Lore% 6 Gallery% 26 Achievement% 26 Wizard Run 0 Options --------- Layout 0 ASCII 0 Keyboard 1 Movement Vi Keybinds 0 Fullscreen 1 Font 18/SmallcapsGlow Map View 76x50 Zoom Use 0% Tactical HUD 1 Map Filters NONE Filters NONE Steam X RUN: 033dea5c-a09f-4d55-96ee-856befe8460b